{"text_format":"3","workbook":"xlsx","n_sheets":3,"sheets":["กำหนดการรายวัน","ตัวจัดกำหนดการเหตุการณ์","ระยะเวลา"],"not_rendered":{"defined_names":21},"read":"whole","date_system":"1900"}

{"sheet":"กำหนดการรายวัน","index":0,"n_rows":76,"n_cols":13,"rows_kept":76,"merged":[[0,1,0,2],[1,1,5,2],[2,12,4,12],[3,7,4,7],[5,12,7,12],[6,1,8,2],[8,12,10,12],[9,7,10,7],[10,1,10,2],[11,12,13,12],[14,12,16,12],[15,7,16,7],[17,12,19,12],[18,1,18,2],[20,12,22,12],[21,7,22,7],[23,12,25,12],[24,1,24,2],[25,1,25,2],[26,7,27,7],[26,12,28,12],[29,12,31,12],[31,7,32,7],[32,12,34,12]]}
[null,"กำหนดการรายวัน"]
[null,{"$f":"IFERROR(DAY(DateVal),\"\")","v":23},null,null,"เวลา",{"$f":"IFERROR(UPPER(TEXT(DATE(ReportYear,จำนวนเดือน,ReportDay),\"D MMMM YYYY\")),\"\")","v":"23 มิถุนายน 2022"},null,"ดูสัปดาห์อย่างรวดเร็ว",{"$nulls":3},"บันทึกย่อ / รายการสิ่งที่ต้องทำ"]
[{"$nulls":4},"เวลา","คำอธิบาย",null,{"$f":"IFERROR(TEXT(DATEVALUE(DateVal)+1,\"dddd\"),\"\")","v":"ศุกร์"},{"$f":"IFERROR(INDEX(ตัวจัดกำหนดการเหตุการณ์[],MATCH($H$6&\"|\"&ROW(A1),ตัวจัดกำหนดการเหตุการณ์[ค่าที่ไม่ซ้ำกัน (คำนวณแล้ว)],0),2),\"\")","v":""},{"$f":"IFERROR(INDEX(ตัวจัดกำหนดการเหตุการณ์[],MATCH($H$6&\"|\"&ROW(A1),ตัวจัดกำหนดการเหตุการณ์[ค่าที่ไม่ซ้ำกัน (คำนวณแล้ว)],0),3),\"\")","v":""},null,null,"รับผ้าที่ซักแห้ง"]
[{"$nulls":4},{"$f":"ระยะเวลา!E3","v":"06:00:00"},{"$f":"IFERROR(INDEX(ตัวจัดกำหนดการเหตุการณ์[],MATCH(DATEVALUE(DateVal)&กำหนดการรายวัน[[#This Row],[เวลา]],LookUpDateAndTime,0),3),\"\")","v":"ตื่นได้แล้ว"},null,{"$f":"IFERROR(TEXT(DATEVALUE(DateVal)+1,\"d\"),\"\")","v":"24"},{"$f":"IFERROR(INDEX(ตัวจัดกำหนดการเหตุการณ์[],MATCH($H$6&\"|\"&ROW(A2),ตัวจัดกำหนดการเหตุการณ์[ค่าที่ไม่ซ้ำกัน (คำนวณแล้ว)],0),2),\"\")","v":"06:30:00"},{"$f":"IFERROR(INDEX(ตัวจัดกำหนดการเหตุการณ์[],MATCH($H$6&\"|\"&ROW(A2),ตัวจัดกำหนดการเหตุการณ์[ค่าที่ไม่ซ้ำกัน (คำนวณแล้ว)],0),3),\"\")","v":"อาหารเช้า"}]
[{"$nulls":4},{"$f":"ระยะเวลา!E4","v":"06:15:00"},{"$f":"IFERROR(INDEX(ตัวจัดกำหนดการเหตุการณ์[],MATCH(DATEVALUE(DateVal)&กำหนดการรายวัน[[#This Row],[เวลา]],LookUpDateAndTime,0),3),\"\")","v":""},null,null,{"$f":"IFERROR(INDEX(ตัวจัดกำหนดการเหตุการณ์[],MATCH($H$6&\"|\"&ROW(A3),ตัวจัดกำหนดการเหตุการณ์[ค่าที่ไม่ซ้ำกัน (คำนวณแล้ว)],0),2),\"\")","v":""},{"$f":"IFERROR(INDEX(ตัวจัดกำหนดการเหตุการณ์[],MATCH($H$6&\"|\"&ROW(A3),ตัวจัดกำหนดการเหตุการณ์[ค่าที่ไม่ซ้ำกัน (คำนวณแล้ว)],0),3),\"\")","v":""}]
[{"$nulls":4},{"$f":"ระยะเวลา!E5","v":"06:30:00"},{"$f":"IFERROR(INDEX(ตัวจัดกำหนดการเหตุการณ์[],MATCH(DATEVALUE(DateVal)&กำหนดการรายวัน[[#This Row],[เวลา]],LookUpDateAndTime,0),3),\"\")","v":"อาบน้ำ"},null,{"$f":"IFERROR(DateVal+1,\"\")","v":"2022-06-24"},{"$f":"IFERROR(INDEX(ตัวจัดกำหนดการเหตุการณ์[],MATCH($H$6&\"|\"&ROW(A4),ตัวจัดกำหนดการเหตุการณ์[ค่าที่ไม่ซ้ำกัน (คำนวณแล้ว)],0),2),\"\")","v":""},{"$f":"IFERROR(INDEX(ตัวจัดกำหนดการเหตุการณ์[],MATCH($H$6&\"|\"&ROW(A4),ตัวจัดกำหนดการเหตุการณ์[ค่าที่ไม่ซ้ำกัน (คำนวณแล้ว)],0),3),\"\")","v":""},null,null,"โทรหาบริษัทสายไฟ"]
[null,{"$f":"IFERROR(TEXT(DateVal,\"dddd\"),\"\")","v":"พฤหัสบดี"},null,null,{"$f":"ระยะเวลา!E6","v":"06:45:00"},{"$f":"IFERROR(INDEX(ตัวจัดกำหนดการเหตุการณ์[],MATCH(DATEVALUE(DateVal)&กำหนดการรายวัน[[#This Row],[เวลา]],LookUpDateAndTime,0),3),\"\")","v":""},null,null,{"$f":"IFERROR(INDEX(ตัวจัดกำหนดการเหตุการณ์[],MATCH($H$6&\"|\"&ROW(A5),ตัวจัดกำหนดการเหตุการณ์[ค่าที่ไม่ซ้ำกัน (คำนวณแล้ว)],0),2),\"\")","v":""},{"$f":"IFERROR(INDEX(ตัวจัดกำหนดการเหตุการณ์[],MATCH($H$6&\"|\"&ROW(A5),ตัวจัดกำหนดการเหตุการณ์[ค่าที่ไม่ซ้ำกัน (คำนวณแล้ว)],0),3),\"\")","v":""}]
[{"$nulls":4},{"$f":"ระยะเวลา!E7","v":"07:00:00"},{"$f":"IFERROR(INDEX(ตัวจัดกำหนดการเหตุการณ์[],MATCH(DATEVALUE(DateVal)&กำหนดการรายวัน[[#This Row],[เวลา]],LookUpDateAndTime,0),3),\"\")","v":""},null,null,{"$f":"IFERROR(INDEX(ตัวจัดกำหนดการเหตุการณ์[],MATCH($H$6&\"|\"&ROW(A6),ตัวจัดกำหนดการเหตุการณ์[ค่าที่ไม่ซ้ำกัน (คำนวณแล้ว)],0),2),\"\")","v":""},{"$f":"IFERROR(INDEX(ตัวจัดกำหนดการเหตุการณ์[],MATCH($H$6&\"|\"&ROW(A6),ตัวจัดกำหนดการเหตุการณ์[ค่าที่ไม่ซ้ำกัน (คำนวณแล้ว)],0),3),\"\")","v":""}]
[{"$nulls":4},{"$f":"ระยะเวลา!E8","v":"07:15:00"},{"$f":"IFERROR(INDEX(ตัวจัดกำหนดการเหตุการณ์[],MATCH(DATEVALUE(DateVal)&กำหนดการรายวัน[[#This Row],[เวลา]],LookUpDateAndTime,0),3),\"\")","v":""},null,{"$f":"IFERROR(TEXT(DATEVALUE(DateVal)+2,\"dddd\"),\"\")","v":"เสาร์"},{"$f":"IFERROR(INDEX(ตัวจัดกำหนดการเหตุการณ์[],MATCH($H$12&\"|\"&ROW(A1),ตัวจัดกำหนดการเหตุการณ์[ค่าที่ไม่ซ้ำกัน (คำนวณแล้ว)],0),2),\"\")","v":""},{"$f":"IFERROR(INDEX(ตัวจัดกำหนดการเหตุการณ์[],MATCH($H$12&\"|\"&ROW(A1),ตัวจัดกำหนดการเหตุการณ์[ค่าที่ไม่ซ้ำกัน (คำนวณแล้ว)],0),3),\"\")","v":""}]
[{"$nulls":4},{"$f":"ระยะเวลา!E9","v":"07:30:00"},{"$f":"IFERROR(INDEX(ตัวจัดกำหนดการเหตุการณ์[],MATCH(DATEVALUE(DateVal)&กำหนดการรายวัน[[#This Row],[เวลา]],LookUpDateAndTime,0),3),\"\")","v":"ออกไปทำงาน"},null,{"$f":"IFERROR(TEXT(DATEVALUE(DateVal)+2,\"d\"),\"\")","v":"25"},{"$f":"IFERROR(INDEX(ตัวจัดกำหนดการเหตุการณ์[],MATCH($H$12&\"|\"&ROW(A2),ตัวจัดกำหนดการเหตุการณ์[ค่าที่ไม่ซ้ำกัน (คำนวณแล้ว)],0),2),\"\")","v":""},{"$f":"IFERROR(INDEX(ตัวจัดกำหนดการเหตุการณ์[],MATCH($H$12&\"|\"&ROW(A2),ตัวจัดกำหนดการเหตุการณ์[ค่าที่ไม่ซ้ำกัน (คำนวณแล้ว)],0),3),\"\")","v":""}]
[null,"ดูกำหนดการ",null,null,{"$f":"ระยะเวลา!E10","v":"07:45:00"},{"$f":"IFERROR(INDEX(ตัวจัดกำหนดการเหตุการณ์[],MATCH(DATEVALUE(DateVal)&กำหนดการรายวัน[[#This Row],[เวลา]],LookUpDateAndTime,0),3),\"\")","v":""},null,null,{"$f":"IFERROR(INDEX(ตัวจัดกำหนดการเหตุการณ์[],MATCH($H$12&\"|\"&ROW(A3),ตัวจัดกำหนดการเหตุการณ์[ค่าที่ไม่ซ้ำกัน (คำนวณแล้ว)],0),2),\"\")","v":""},{"$f":"IFERROR(INDEX(ตัวจัดกำหนดการเหตุการณ์[],MATCH($H$12&\"|\"&ROW(A3),ตัวจัดกำหนดการเหตุการณ์[ค่าที่ไม่ซ้ำกัน (คำนวณแล้ว)],0),3),\"\")","v":""}]
[{"$nulls":4},{"$f":"ระยะเวลา!E11","v":"08:00:00"},{"$f":"IFERROR(INDEX(ตัวจัดกำหนดการเหตุการณ์[],MATCH(DATEVALUE(DateVal)&กำหนดการรายวัน[[#This Row],[เวลา]],LookUpDateAndTime,0),3),\"\")","v":"เริ่มกะ"},null,{"$f":"IFERROR(DateVal+2,\"\")","v":"2022-06-25"},{"$f":"IFERROR(INDEX(ตัวจัดกำหนดการเหตุการณ์[],MATCH($H$12&\"|\"&ROW(A4),ตัวจัดกำหนดการเหตุการณ์[ค่าที่ไม่ซ้ำกัน (คำนวณแล้ว)],0),2),\"\")","v":""},{"$f":"IFERROR(INDEX(ตัวจัดกำหนดการเหตุการณ์[],MATCH($H$12&\"|\"&ROW(A4),ตัวจัดกำหนดการเหตุการณ์[ค่าที่ไม่ซ้ำกัน (คำนวณแล้ว)],0),3),\"\")","v":""}]
[null,"ปี",null,null,{"$f":"ระยะเวลา!E12","v":"08:15:00"},{"$f":"IFERROR(INDEX(ตัวจัดกำหนดการเหตุการณ์[],MATCH(DATEVALUE(DateVal)&กำหนดการรายวัน[[#This Row],[เวลา]],LookUpDateAndTime,0),3),\"\")","v":""},null,null,{"$f":"IFERROR(INDEX(ตัวจัดกำหนดการเหตุการณ์[],MATCH($H$12&\"|\"&ROW(A5),ตัวจัดกำหนดการเหตุการณ์[ค่าที่ไม่ซ้ำกัน (คำนวณแล้ว)],0),2),\"\")","v":""},{"$f":"IFERROR(INDEX(ตัวจัดกำหนดการเหตุการณ์[],MATCH($H$12&\"|\"&ROW(A5),ตัวจัดกำหนดการเหตุการณ์[ค่าที่ไม่ซ้ำกัน (คำนวณแล้ว)],0),3),\"\")","v":""}]
[{"$nulls":4},{"$f":"ระยะเวลา!E13","v":"08:30:00"},{"$f":"IFERROR(INDEX(ตัวจัดกำหนดการเหตุการณ์[],MATCH(DATEVALUE(DateVal)&กำหนดการรายวัน[[#This Row],[เวลา]],LookUpDateAndTime,0),3),\"\")","v":""},null,null,{"$f":"IFERROR(INDEX(ตัวจัดกำหนดการเหตุการณ์[],MATCH($H$12&\"|\"&ROW(A6),ตัวจัดกำหนดการเหตุการณ์[ค่าที่ไม่ซ้ำกัน (คำนวณแล้ว)],0),2),\"\")","v":""},{"$f":"IFERROR(INDEX(ตัวจัดกำหนดการเหตุการณ์[],MATCH($H$12&\"|\"&ROW(A6),ตัวจัดกำหนดการเหตุการณ์[ค่าที่ไม่ซ้ำกัน (คำนวณแล้ว)],0),3),\"\")","v":""}]
[null,"เดือน",null,null,{"$f":"ระยะเวลา!E14","v":"08:45:00"},{"$f":"IFERROR(INDEX(ตัวจัดกำหนดการเหตุการณ์[],MATCH(DATEVALUE(DateVal)&กำหนดการรายวัน[[#This Row],[เวลา]],LookUpDateAndTime,0),3),\"\")","v":""},null,{"$f":"IFERROR(TEXT(DATEVALUE(DateVal)+3,\"dddd\"),\"\")","v":"อาทิตย์"},{"$f":"IFERROR(INDEX(ตัวจัดกำหนดการเหตุการณ์[],MATCH($H$18&\"|\"&ROW(A1),ตัวจัดกำหนดการเหตุการณ์[ค่าที่ไม่ซ้ำกัน (คำนวณแล้ว)],0),2),\"\")","v":""},{"$f":"IFERROR(INDEX(ตัวจัดกำหนดการเหตุการณ์[],MATCH($H$18&\"|\"&ROW(A1),ตัวจัดกำหนดการเหตุการณ์[ค่าที่ไม่ซ้ำกัน (คำนวณแล้ว)],0),3),\"\")","v":""}]
[{"$nulls":4},{"$f":"ระยะเวลา!E15","v":"09:00:00"},{"$f":"IFERROR(INDEX(ตัวจัดกำหนดการเหตุการณ์[],MATCH(DATEVALUE(DateVal)&กำหนดการรายวัน[[#This Row],[เวลา]],LookUpDateAndTime,0),3),\"\")","v":""},null,{"$f":"IFERROR(TEXT(DATEVALUE(DateVal)+3,\"d\"),\"\")","v":"26"},{"$f":"IFERROR(INDEX(ตัวจัดกำหนดการเหตุการณ์[],MATCH($H$18&\"|\"&ROW(A2),ตัวจัดกำหนดการเหตุการณ์[ค่าที่ไม่ซ้ำกัน (คำนวณแล้ว)],0),2),\"\")","v":""},{"$f":"IFERROR(INDEX(ตัวจัดกำหนดการเหตุการณ์[],MATCH($H$18&\"|\"&ROW(A2),ตัวจัดกำหนดการเหตุการณ์[ค่าที่ไม่ซ้ำกัน (คำนวณแล้ว)],0),3),\"\")","v":""}]
[null,"วัน",null,null,{"$f":"ระยะเวลา!E16","v":"09:15:00"},{"$f":"IFERROR(INDEX(ตัวจัดกำหนดการเหตุการณ์[],MATCH(DATEVALUE(DateVal)&กำหนดการรายวัน[[#This Row],[เวลา]],LookUpDateAndTime,0),3),\"\")","v":""},null,null,{"$f":"IFERROR(INDEX(ตัวจัดกำหนดการเหตุการณ์[],MATCH($H$18&\"|\"&ROW(A3),ตัวจัดกำหนดการเหตุการณ์[ค่าที่ไม่ซ้ำกัน (คำนวณแล้ว)],0),2),\"\")","v":""},{"$f":"IFERROR(INDEX(ตัวจัดกำหนดการเหตุการณ์[],MATCH($H$18&\"|\"&ROW(A3),ตัวจัดกำหนดการเหตุการณ์[ค่าที่ไม่ซ้ำกัน (คำนวณแล้ว)],0),3),\"\")","v":""}]
[{"$nulls":4},{"$f":"ระยะเวลา!E17","v":"09:30:00"},{"$f":"IFERROR(INDEX(ตัวจัดกำหนดการเหตุการณ์[],MATCH(DATEVALUE(DateVal)&กำหนดการรายวัน[[#This Row],[เวลา]],LookUpDateAndTime,0),3),\"\")","v":""},null,{"$f":"IFERROR(DateVal+3,\"\")","v":"2022-06-26"},{"$f":"IFERROR(INDEX(ตัวจัดกำหนดการเหตุการณ์[],MATCH($H$18&\"|\"&ROW(A4),ตัวจัดกำหนดการเหตุการณ์[ค่าที่ไม่ซ้ำกัน (คำนวณแล้ว)],0),2),\"\")","v":""},{"$f":"IFERROR(INDEX(ตัวจัดกำหนดการเหตุการณ์[],MATCH($H$18&\"|\"&ROW(A4),ตัวจัดกำหนดการเหตุการณ์[ค่าที่ไม่ซ้ำกัน (คำนวณแล้ว)],0),3),\"\")","v":""}]
[null,"แก้ไขกำหนดการ",null,null,{"$f":"ระยะเวลา!E18","v":"09:45:00"},{"$f":"IFERROR(INDEX(ตัวจัดกำหนดการเหตุการณ์[],MATCH(DATEVALUE(DateVal)&กำหนดการรายวัน[[#This Row],[เวลา]],LookUpDateAndTime,0),3),\"\")","v":""},null,null,{"$f":"IFERROR(INDEX(ตัวจัดกำหนดการเหตุการณ์[],MATCH($H$18&\"|\"&ROW(A5),ตัวจัดกำหนดการเหตุการณ์[ค่าที่ไม่ซ้ำกัน (คำนวณแล้ว)],0),2),\"\")","v":""},{"$f":"IFERROR(INDEX(ตัวจัดกำหนดการเหตุการณ์[],MATCH($H$18&\"|\"&ROW(A5),ตัวจัดกำหนดการเหตุการณ์[ค่าที่ไม่ซ้ำกัน (คำนวณแล้ว)],0),3),\"\")","v":""}]
[{"$nulls":4},{"$f":"ระยะเวลา!E19","v":"10:00:00"},{"$f":"IFERROR(INDEX(ตัวจัดกำหนดการเหตุการณ์[],MATCH(DATEVALUE(DateVal)&กำหนดการรายวัน[[#This Row],[เวลา]],LookUpDateAndTime,0),3),\"\")","v":"พัก"},null,null,{"$f":"IFERROR(INDEX(ตัวจัดกำหนดการเหตุการณ์[],MATCH($H$18&\"|\"&ROW(A6),ตัวจัดกำหนดการเหตุการณ์[ค่าที่ไม่ซ้ำกัน (คำนวณแล้ว)],0),2),\"\")","v":""},{"$f":"IFERROR(INDEX(ตัวจัดกำหนดการเหตุการณ์[],MATCH($H$18&\"|\"&ROW(A6),ตัวจัดกำหนดการเหตุการณ์[ค่าที่ไม่ซ้ำกัน (คำนวณแล้ว)],0),3),\"\")","v":""}]
[null,"เลือกแก้ไขระยะเวลา",null,null,{"$f":"ระยะเวลา!E20","v":"10:15:00"},{"$f":"IFERROR(INDEX(ตัวจัดกำหนดการเหตุการณ์[],MATCH(DATEVALUE(DateVal)&กำหนดการรายวัน[[#This Row],[เวลา]],LookUpDateAndTime,0),3),\"\")","v":""},null,{"$f":"IFERROR(TEXT(DATEVALUE(DateVal)+4,\"dddd\"),\"\")","v":"จันทร์"},{"$f":"IFERROR(INDEX(ตัวจัดกำหนดการเหตุการณ์[],MATCH($H$24&\"|\"&ROW(A1),ตัวจัดกำหนดการเหตุการณ์[ค่าที่ไม่ซ้ำกัน (คำนวณแล้ว)],0),2),\"\")","v":""},{"$f":"IFERROR(INDEX(ตัวจัดกำหนดการเหตุการณ์[],MATCH($H$24&\"|\"&ROW(A1),ตัวจัดกำหนดการเหตุการณ์[ค่าที่ไม่ซ้ำกัน (คำนวณแล้ว)],0),3),\"\")","v":""}]
[{"$nulls":4},{"$f":"ระยะเวลา!E21","v":"10:30:00"},{"$f":"IFERROR(INDEX(ตัวจัดกำหนดการเหตุการณ์[],MATCH(DATEVALUE(DateVal)&กำหนดการรายวัน[[#This Row],[เวลา]],LookUpDateAndTime,0),3),\"\")","v":""},null,{"$f":"IFERROR(TEXT(DATEVALUE(DateVal)+4,\"d\"),\"\")","v":"27"},{"$f":"IFERROR(INDEX(ตัวจัดกำหนดการเหตุการณ์[],MATCH($H$24&\"|\"&ROW(A2),ตัวจัดกำหนดการเหตุการณ์[ค่าที่ไม่ซ้ำกัน (คำนวณแล้ว)],0),2),\"\")","v":""},{"$f":"IFERROR(INDEX(ตัวจัดกำหนดการเหตุการณ์[],MATCH($H$24&\"|\"&ROW(A2),ตัวจัดกำหนดการเหตุการณ์[ค่าที่ไม่ซ้ำกัน (คำนวณแล้ว)],0),3),\"\")","v":""}]
[null,"เลือกเพื่อเพิ่มเหตุการณ์ใหม่",null,null,{"$f":"ระยะเวลา!E22","v":"10:45:00"},{"$f":"IFERROR(INDEX(ตัวจัดกำหนดการเหตุการณ์[],MATCH(DATEVALUE(DateVal)&กำหนดการรายวัน[[#This Row],[เวลา]],LookUpDateAndTime,0),3),\"\")","v":""},null,null,{"$f":"IFERROR(INDEX(ตัวจัดกำหนดการเหตุการณ์[],MATCH($H$24&\"|\"&ROW(A3),ตัวจัดกำหนดการเหตุการณ์[ค่าที่ไม่ซ้ำกัน (คำนวณแล้ว)],0),2),\"\")","v":""},{"$f":"IFERROR(INDEX(ตัวจัดกำหนดการเหตุการณ์[],MATCH($H$24&\"|\"&ROW(A3),ตัวจัดกำหนดการเหตุการณ์[ค่าที่ไม่ซ้ำกัน (คำนวณแล้ว)],0),3),\"\")","v":""}]
[{"$nulls":4},{"$f":"ระยะเวลา!E23","v":"11:00:00"},{"$f":"IFERROR(INDEX(ตัวจัดกำหนดการเหตุการณ์[],MATCH(DATEVALUE(DateVal)&กำหนดการรายวัน[[#This Row],[เวลา]],LookUpDateAndTime,0),3),\"\")","v":""},null,{"$f":"IFERROR(DateVal+4,\"\")","v":"2022-06-27"},{"$f":"IFERROR(INDEX(ตัวจัดกำหนดการเหตุการณ์[],MATCH($H$24&\"|\"&ROW(A4),ตัวจัดกำหนดการเหตุการณ์[ค่าที่ไม่ซ้ำกัน (คำนวณแล้ว)],0),2),\"\")","v":""},{"$f":"IFERROR(INDEX(ตัวจัดกำหนดการเหตุการณ์[],MATCH($H$24&\"|\"&ROW(A4),ตัวจัดกำหนดการเหตุการณ์[ค่าที่ไม่ซ้ำกัน (คำนวณแล้ว)],0),3),\"\")","v":""}]
[null,"ไฮไลต์ในกำหนดการ",null,null,{"$f":"ระยะเวลา!E24","v":"11:15:00"},{"$f":"IFERROR(INDEX(ตัวจัดกำหนดการเหตุการณ์[],MATCH(DATEVALUE(DateVal)&กำหนดการรายวัน[[#This Row],[เวลา]],LookUpDateAndTime,0),3),\"\")","v":""},null,null,{"$f":"IFERROR(INDEX(ตัวจัดกำหนดการเหตุการณ์[],MATCH($H$24&\"|\"&ROW(A5),ตัวจัดกำหนดการเหตุการณ์[ค่าที่ไม่ซ้ำกัน (คำนวณแล้ว)],0),2),\"\")","v":""},{"$f":"IFERROR(INDEX(ตัวจัดกำหนดการเหตุการณ์[],MATCH($H$24&\"|\"&ROW(A5),ตัวจัดกำหนดการเหตุการณ์[ค่าที่ไม่ซ้ำกัน (คำนวณแล้ว)],0),3),\"\")","v":""}]
[null,"พัก",null,null,{"$f":"ระยะเวลา!E25","v":"11:30:00"},{"$f":"IFERROR(INDEX(ตัวจัดกำหนดการเหตุการณ์[],MATCH(DATEVALUE(DateVal)&กำหนดการรายวัน[[#This Row],[เวลา]],LookUpDateAndTime,0),3),\"\")","v":""},null,{"$f":"IFERROR(TEXT(DATEVALUE(DateVal)+5,\"dddd\"),\"\")","v":"อังคาร"},{"$f":"IFERROR(INDEX(ตัวจัดกำหนดการเหตุการณ์[],MATCH($H$29&\"|\"&ROW(A1),ตัวจัดกำหนดการเหตุการณ์[ค่าที่ไม่ซ้ำกัน (คำนวณแล้ว)],0),2),\"\")","v":""},{"$f":"IFERROR(INDEX(ตัวจัดกำหนดการเหตุการณ์[],MATCH($H$29&\"|\"&ROW(A1),ตัวจัดกำหนดการเหตุการณ์[ค่าที่ไม่ซ้ำกัน (คำนวณแล้ว)],0),3),\"\")","v":""}]
[{"$nulls":4},{"$f":"ระยะเวลา!E26","v":"11:45:00"},{"$f":"IFERROR(INDEX(ตัวจัดกำหนดการเหตุการณ์[],MATCH(DATEVALUE(DateVal)&กำหนดการรายวัน[[#This Row],[เวลา]],LookUpDateAndTime,0),3),\"\")","v":""},null,{"$f":"IFERROR(TEXT(DATEVALUE(DateVal)+5,\"d\"),\"\")","v":"28"},{"$f":"IFERROR(INDEX(ตัวจัดกำหนดการเหตุการณ์[],MATCH($H$29&\"|\"&ROW(A2),ตัวจัดกำหนดการเหตุการณ์[ค่าที่ไม่ซ้ำกัน (คำนวณแล้ว)],0),2),\"\")","v":""},{"$f":"IFERROR(INDEX(ตัวจัดกำหนดการเหตุการณ์[],MATCH($H$29&\"|\"&ROW(A2),ตัวจัดกำหนดการเหตุการณ์[ค่าที่ไม่ซ้ำกัน (คำนวณแล้ว)],0),3),\"\")","v":""}]
[{"$nulls":4},{"$f":"ระยะเวลา!E27","v":"12:00:00"},{"$f":"IFERROR(INDEX(ตัวจัดกำหนดการเหตุการณ์[],MATCH(DATEVALUE(DateVal)&กำหนดการรายวัน[[#This Row],[เวลา]],LookUpDateAndTime,0),3),\"\")","v":"อาหารกลางวัน"},null,null,{"$f":"IFERROR(INDEX(ตัวจัดกำหนดการเหตุการณ์[],MATCH($H$29&\"|\"&ROW(A3),ตัวจัดกำหนดการเหตุการณ์[ค่าที่ไม่ซ้ำกัน (คำนวณแล้ว)],0),2),\"\")","v":""},{"$f":"IFERROR(INDEX(ตัวจัดกำหนดการเหตุการณ์[],MATCH($H$29&\"|\"&ROW(A3),ตัวจัดกำหนดการเหตุการณ์[ค่าที่ไม่ซ้ำกัน (คำนวณแล้ว)],0),3),\"\")","v":""}]
[{"$nulls":4},{"$f":"ระยะเวลา!E28","v":"12:15:00"},{"$f":"IFERROR(INDEX(ตัวจัดกำหนดการเหตุการณ์[],MATCH(DATEVALUE(DateVal)&กำหนดการรายวัน[[#This Row],[เวลา]],LookUpDateAndTime,0),3),\"\")","v":""},null,{"$f":"IFERROR(DateVal+5,\"\")","v":"2022-06-28"},{"$f":"IFERROR(INDEX(ตัวจัดกำหนดการเหตุการณ์[],MATCH($H$29&\"|\"&ROW(A4),ตัวจัดกำหนดการเหตุการณ์[ค่าที่ไม่ซ้ำกัน (คำนวณแล้ว)],0),2),\"\")","v":""},{"$f":"IFERROR(INDEX(ตัวจัดกำหนดการเหตุการณ์[],MATCH($H$29&\"|\"&ROW(A4),ตัวจัดกำหนดการเหตุการณ์[ค่าที่ไม่ซ้ำกัน (คำนวณแล้ว)],0),3),\"\")","v":""}]
[{"$nulls":4},{"$f":"ระยะเวลา!E29","v":"12:30:00"},{"$f":"IFERROR(INDEX(ตัวจัดกำหนดการเหตุการณ์[],MATCH(DATEVALUE(DateVal)&กำหนดการรายวัน[[#This Row],[เวลา]],LookUpDateAndTime,0),3),\"\")","v":""},null,null,{"$f":"IFERROR(INDEX(ตัวจัดกำหนดการเหตุการณ์[],MATCH($H$29&\"|\"&ROW(A5),ตัวจัดกำหนดการเหตุการณ์[ค่าที่ไม่ซ้ำกัน (คำนวณแล้ว)],0),2),\"\")","v":""},{"$f":"IFERROR(INDEX(ตัวจัดกำหนดการเหตุการณ์[],MATCH($H$29&\"|\"&ROW(A5),ตัวจัดกำหนดการเหตุการณ์[ค่าที่ไม่ซ้ำกัน (คำนวณแล้ว)],0),3),\"\")","v":""}]
[{"$nulls":4},{"$f":"ระยะเวลา!E30","v":"12:45:00"},{"$f":"IFERROR(INDEX(ตัวจัดกำหนดการเหตุการณ์[],MATCH(DATEVALUE(DateVal)&กำหนดการรายวัน[[#This Row],[เวลา]],LookUpDateAndTime,0),3),\"\")","v":""},null,{"$f":"IFERROR(TEXT(DATEVALUE(DateVal)+6,\"dddd\"),\"\")","v":"พุธ"},{"$f":"IFERROR(INDEX(ตัวจัดกำหนดการเหตุการณ์[],MATCH($H$34&\"|\"&ROW(A1),ตัวจัดกำหนดการเหตุการณ์[ค่าที่ไม่ซ้ำกัน (คำนวณแล้ว)],0),2),\"\")","v":""},{"$f":"IFERROR(INDEX(ตัวจัดกำหนดการเหตุการณ์[],MATCH($H$34&\"|\"&ROW(A1),ตัวจัดกำหนดการเหตุการณ์[ค่าที่ไม่ซ้ำกัน (คำนวณแล้ว)],0),3),\"\")","v":""}]
[{"$nulls":4},{"$f":"ระยะเวลา!E31","v":"13:00:00"},{"$f":"IFERROR(INDEX(ตัวจัดกำหนดการเหตุการณ์[],MATCH(DATEVALUE(DateVal)&กำหนดการรายวัน[[#This Row],[เวลา]],LookUpDateAndTime,0),3),\"\")","v":""},null,{"$f":"IFERROR(TEXT(DATEVALUE(DateVal)+6,\"d\"),\"\")","v":"29"},{"$f":"IFERROR(INDEX(ตัวจัดกำหนดการเหตุการณ์[],MATCH($H$34&\"|\"&ROW(A2),ตัวจัดกำหนดการเหตุการณ์[ค่าที่ไม่ซ้ำกัน (คำนวณแล้ว)],0),2),\"\")","v":""},{"$f":"IFERROR(INDEX(ตัวจัดกำหนดการเหตุการณ์[],MATCH($H$34&\"|\"&ROW(A2),ตัวจัดกำหนดการเหตุการณ์[ค่าที่ไม่ซ้ำกัน (คำนวณแล้ว)],0),3),\"\")","v":""}]
[{"$nulls":4},{"$f":"ระยะเวลา!E32","v":"13:15:00"},{"$f":"IFERROR(INDEX(ตัวจัดกำหนดการเหตุการณ์[],MATCH(DATEVALUE(DateVal)&กำหนดการรายวัน[[#This Row],[เวลา]],LookUpDateAndTime,0),3),\"\")","v":""},null,null,{"$f":"IFERROR(INDEX(ตัวจัดกำหนดการเหตุการณ์[],MATCH($H$34&\"|\"&ROW(A3),ตัวจัดกำหนดการเหตุการณ์[ค่าที่ไม่ซ้ำกัน (คำนวณแล้ว)],0),2),\"\")","v":""},{"$f":"IFERROR(INDEX(ตัวจัดกำหนดการเหตุการณ์[],MATCH($H$34&\"|\"&ROW(A3),ตัวจัดกำหนดการเหตุการณ์[ค่าที่ไม่ซ้ำกัน (คำนวณแล้ว)],0),3),\"\")","v":""}]
[{"$nulls":4},{"$f":"ระยะเวลา!E33","v":"13:30:00"},{"$f":"IFERROR(INDEX(ตัวจัดกำหนดการเหตุการณ์[],MATCH(DATEVALUE(DateVal)&กำหนดการรายวัน[[#This Row],[เวลา]],LookUpDateAndTime,0),3),\"\")","v":"โทรหาองค์กร"},null,{"$f":"IFERROR(DateVal+6,\"\")","v":"2022-06-29"},{"$f":"IFERROR(INDEX(ตัวจัดกำหนดการเหตุการณ์[],MATCH($H$34&\"|\"&ROW(A4),ตัวจัดกำหนดการเหตุการณ์[ค่าที่ไม่ซ้ำกัน (คำนวณแล้ว)],0),2),\"\")","v":""},{"$f":"IFERROR(INDEX(ตัวจัดกำหนดการเหตุการณ์[],MATCH($H$34&\"|\"&ROW(A4),ตัวจัดกำหนดการเหตุการณ์[ค่าที่ไม่ซ้ำกัน (คำนวณแล้ว)],0),3),\"\")","v":""}]
[{"$nulls":4},{"$f":"ระยะเวลา!E34","v":"13:45:00"},{"$f":"IFERROR(INDEX(ตัวจัดกำหนดการเหตุการณ์[],MATCH(DATEVALUE(DateVal)&กำหนดการรายวัน[[#This Row],[เวลา]],LookUpDateAndTime,0),3),\"\")","v":""},null,null,{"$f":"IFERROR(INDEX(ตัวจัดกำหนดการเหตุการณ์[],MATCH($H$34&\"|\"&ROW(A5),ตัวจัดกำหนดการเหตุการณ์[ค่าที่ไม่ซ้ำกัน (คำนวณแล้ว)],0),2),\"\")","v":""},{"$f":"IFERROR(INDEX(ตัวจัดกำหนดการเหตุการณ์[],MATCH($H$34&\"|\"&ROW(A5),ตัวจัดกำหนดการเหตุการณ์[ค่าที่ไม่ซ้ำกัน (คำนวณแล้ว)],0),3),\"\")","v":""}]
[{"$nulls":4},{"$f":"ระยะเวลา!E35","v":"14:00:00"},{"$f":"IFERROR(INDEX(ตัวจัดกำหนดการเหตุการณ์[],MATCH(DATEVALUE(DateVal)&กำหนดการรายวัน[[#This Row],[เวลา]],LookUpDateAndTime,0),3),\"\")","v":""}]
[{"$nulls":4},{"$f":"ระยะเวลา!E36","v":"14:15:00"},{"$f":"IFERROR(INDEX(ตัวจัดกำหนดการเหตุการณ์[],MATCH(DATEVALUE(DateVal)&กำหนดการรายวัน[[#This Row],[เวลา]],LookUpDateAndTime,0),3),\"\")","v":""}]
[{"$nulls":4},{"$f":"ระยะเวลา!E37","v":"14:30:00"},{"$f":"IFERROR(INDEX(ตัวจัดกำหนดการเหตุการณ์[],MATCH(DATEVALUE(DateVal)&กำหนดการรายวัน[[#This Row],[เวลา]],LookUpDateAndTime,0),3),\"\")","v":""}]
[{"$nulls":4},{"$f":"ระยะเวลา!E38","v":"14:45:00"},{"$f":"IFERROR(INDEX(ตัวจัดกำหนดการเหตุการณ์[],MATCH(DATEVALUE(DateVal)&กำหนดการรายวัน[[#This Row],[เวลา]],LookUpDateAndTime,0),3),\"\")","v":""}]
[{"$nulls":4},{"$f":"ระยะเวลา!E39","v":"15:00:00"},{"$f":"IFERROR(INDEX(ตัวจัดกำหนดการเหตุการณ์[],MATCH(DATEVALUE(DateVal)&กำหนดการรายวัน[[#This Row],[เวลา]],LookUpDateAndTime,0),3),\"\")","v":"พัก"}]
[{"$nulls":4},{"$f":"ระยะเวลา!E40","v":"15:15:00"},{"$f":"IFERROR(INDEX(ตัวจัดกำหนดการเหตุการณ์[],MATCH(DATEVALUE(DateVal)&กำหนดการรายวัน[[#This Row],[เวลา]],LookUpDateAndTime,0),3),\"\")","v":""}]
[{"$nulls":4},{"$f":"ระยะเวลา!E41","v":"15:30:00"},{"$f":"IFERROR(INDEX(ตัวจัดกำหนดการเหตุการณ์[],MATCH(DATEVALUE(DateVal)&กำหนดการรายวัน[[#This Row],[เวลา]],LookUpDateAndTime,0),3),\"\")","v":""}]
[{"$nulls":4},{"$f":"ระยะเวลา!E42","v":"15:45:00"},{"$f":"IFERROR(INDEX(ตัวจัดกำหนดการเหตุการณ์[],MATCH(DATEVALUE(DateVal)&กำหนดการรายวัน[[#This Row],[เวลา]],LookUpDateAndTime,0),3),\"\")","v":""}]
[{"$nulls":4},{"$f":"ระยะเวลา!E43","v":"16:00:00"},{"$f":"IFERROR(INDEX(ตัวจัดกำหนดการเหตุการณ์[],MATCH(DATEVALUE(DateVal)&กำหนดการรายวัน[[#This Row],[เวลา]],LookUpDateAndTime,0),3),\"\")","v":""}]
[{"$nulls":4},{"$f":"ระยะเวลา!E44","v":"16:15:00"},{"$f":"IFERROR(INDEX(ตัวจัดกำหนดการเหตุการณ์[],MATCH(DATEVALUE(DateVal)&กำหนดการรายวัน[[#This Row],[เวลา]],LookUpDateAndTime,0),3),\"\")","v":""}]
[{"$nulls":4},{"$f":"ระยะเวลา!E45","v":"16:30:00"},{"$f":"IFERROR(INDEX(ตัวจัดกำหนดการเหตุการณ์[],MATCH(DATEVALUE(DateVal)&กำหนดการรายวัน[[#This Row],[เวลา]],LookUpDateAndTime,0),3),\"\")","v":""}]
[{"$nulls":4},{"$f":"ระยะเวลา!E46","v":"16:45:00"},{"$f":"IFERROR(INDEX(ตัวจัดกำหนดการเหตุการณ์[],MATCH(DATEVALUE(DateVal)&กำหนดการรายวัน[[#This Row],[เวลา]],LookUpDateAndTime,0),3),\"\")","v":""}]
[{"$nulls":4},{"$f":"ระยะเวลา!E47","v":"17:00:00"},{"$f":"IFERROR(INDEX(ตัวจัดกำหนดการเหตุการณ์[],MATCH(DATEVALUE(DateVal)&กำหนดการรายวัน[[#This Row],[เวลา]],LookUpDateAndTime,0),3),\"\")","v":"หน้าแรก"}]
[{"$nulls":4},{"$f":"ระยะเวลา!E48","v":"17:15:00"},{"$f":"IFERROR(INDEX(ตัวจัดกำหนดการเหตุการณ์[],MATCH(DATEVALUE(DateVal)&กำหนดการรายวัน[[#This Row],[เวลา]],LookUpDateAndTime,0),3),\"\")","v":""}]
[{"$nulls":4},{"$f":"ระยะเวลา!E49","v":"17:30:00"},{"$f":"IFERROR(INDEX(ตัวจัดกำหนดการเหตุการณ์[],MATCH(DATEVALUE(DateVal)&กำหนดการรายวัน[[#This Row],[เวลา]],LookUpDateAndTime,0),3),\"\")","v":""}]
[{"$nulls":4},{"$f":"ระยะเวลา!E50","v":"17:45:00"},{"$f":"IFERROR(INDEX(ตัวจัดกำหนดการเหตุการณ์[],MATCH(DATEVALUE(DateVal)&กำหนดการรายวัน[[#This Row],[เวลา]],LookUpDateAndTime,0),3),\"\")","v":""}]
[{"$nulls":4},{"$f":"ระยะเวลา!E51","v":"18:00:00"},{"$f":"IFERROR(INDEX(ตัวจัดกำหนดการเหตุการณ์[],MATCH(DATEVALUE(DateVal)&กำหนดการรายวัน[[#This Row],[เวลา]],LookUpDateAndTime,0),3),\"\")","v":"ฝึกฟุตบอล"}]
[{"$nulls":4},{"$f":"ระยะเวลา!E52","v":"18:15:00"},{"$f":"IFERROR(INDEX(ตัวจัดกำหนดการเหตุการณ์[],MATCH(DATEVALUE(DateVal)&กำหนดการรายวัน[[#This Row],[เวลา]],LookUpDateAndTime,0),3),\"\")","v":""}]
[{"$nulls":4},{"$f":"ระยะเวลา!E53","v":"18:30:00"},{"$f":"IFERROR(INDEX(ตัวจัดกำหนดการเหตุการณ์[],MATCH(DATEVALUE(DateVal)&กำหนดการรายวัน[[#This Row],[เวลา]],LookUpDateAndTime,0),3),\"\")","v":""}]
[{"$nulls":4},{"$f":"ระยะเวลา!E54","v":"18:45:00"},{"$f":"IFERROR(INDEX(ตัวจัดกำหนดการเหตุการณ์[],MATCH(DATEVALUE(DateVal)&กำหนดการรายวัน[[#This Row],[เวลา]],LookUpDateAndTime,0),3),\"\")","v":""}]
[{"$nulls":4},{"$f":"ระยะเวลา!E55","v":"19:00:00"},{"$f":"IFERROR(INDEX(ตัวจัดกำหนดการเหตุการณ์[],MATCH(DATEVALUE(DateVal)&กำหนดการรายวัน[[#This Row],[เวลา]],LookUpDateAndTime,0),3),\"\")","v":""}]
[{"$nulls":4},{"$f":"ระยะเวลา!E56","v":"19:15:00"},{"$f":"IFERROR(INDEX(ตัวจัดกำหนดการเหตุการณ์[],MATCH(DATEVALUE(DateVal)&กำหนดการรายวัน[[#This Row],[เวลา]],LookUpDateAndTime,0),3),\"\")","v":""}]
[{"$nulls":4},{"$f":"ระยะเวลา!E57","v":"19:30:00"},{"$f":"IFERROR(INDEX(ตัวจัดกำหนดการเหตุการณ์[],MATCH(DATEVALUE(DateVal)&กำหนดการรายวัน[[#This Row],[เวลา]],LookUpDateAndTime,0),3),\"\")","v":""}]
[{"$nulls":4},{"$f":"ระยะเวลา!E58","v":"19:45:00"},{"$f":"IFERROR(INDEX(ตัวจัดกำหนดการเหตุการณ์[],MATCH(DATEVALUE(DateVal)&กำหนดการรายวัน[[#This Row],[เวลา]],LookUpDateAndTime,0),3),\"\")","v":""}]
[{"$nulls":4},{"$f":"ระยะเวลา!E59","v":"20:00:00"},{"$f":"IFERROR(INDEX(ตัวจัดกำหนดการเหตุการณ์[],MATCH(DATEVALUE(DateVal)&กำหนดการรายวัน[[#This Row],[เวลา]],LookUpDateAndTime,0),3),\"\")","v":""}]
[{"$nulls":4},{"$f":"ระยะเวลา!E60","v":"20:15:00"},{"$f":"IFERROR(INDEX(ตัวจัดกำหนดการเหตุการณ์[],MATCH(DATEVALUE(DateVal)&กำหนดการรายวัน[[#This Row],[เวลา]],LookUpDateAndTime,0),3),\"\")","v":""}]
[{"$nulls":4},{"$f":"ระยะเวลา!E61","v":"20:30:00"},{"$f":"IFERROR(INDEX(ตัวจัดกำหนดการเหตุการณ์[],MATCH(DATEVALUE(DateVal)&กำหนดการรายวัน[[#This Row],[เวลา]],LookUpDateAndTime,0),3),\"\")","v":""}]
[{"$nulls":4},{"$f":"ระยะเวลา!E62","v":"20:45:00"},{"$f":"IFERROR(INDEX(ตัวจัดกำหนดการเหตุการณ์[],MATCH(DATEVALUE(DateVal)&กำหนดการรายวัน[[#This Row],[เวลา]],LookUpDateAndTime,0),3),\"\")","v":""}]
[{"$nulls":4},{"$f":"ระยะเวลา!E63","v":"21:00:00"},{"$f":"IFERROR(INDEX(ตัวจัดกำหนดการเหตุการณ์[],MATCH(DATEVALUE(DateVal)&กำหนดการรายวัน[[#This Row],[เวลา]],LookUpDateAndTime,0),3),\"\")","v":""}]
[{"$nulls":4},{"$f":"ระยะเวลา!E64","v":""},{"$f":"IFERROR(INDEX(ตัวจัดกำหนดการเหตุการณ์[],MATCH(DATEVALUE(DateVal)&กำหนดการรายวัน[[#This Row],[เวลา]],LookUpDateAndTime,0),3),\"\")","v":""}]
[{"$nulls":4},{"$f":"ระยะเวลา!E65","v":""},{"$f":"IFERROR(INDEX(ตัวจัดกำหนดการเหตุการณ์[],MATCH(DATEVALUE(DateVal)&กำหนดการรายวัน[[#This Row],[เวลา]],LookUpDateAndTime,0),3),\"\")","v":""}]
[{"$nulls":4},{"$f":"ระยะเวลา!E66","v":""},{"$f":"IFERROR(INDEX(ตัวจัดกำหนดการเหตุการณ์[],MATCH(DATEVALUE(DateVal)&กำหนดการรายวัน[[#This Row],[เวลา]],LookUpDateAndTime,0),3),\"\")","v":""}]
[{"$nulls":4},{"$f":"ระยะเวลา!E67","v":""},{"$f":"IFERROR(INDEX(ตัวจัดกำหนดการเหตุการณ์[],MATCH(DATEVALUE(DateVal)&กำหนดการรายวัน[[#This Row],[เวลา]],LookUpDateAndTime,0),3),\"\")","v":""}]
[{"$nulls":4},{"$f":"ระยะเวลา!E68","v":""},{"$f":"IFERROR(INDEX(ตัวจัดกำหนดการเหตุการณ์[],MATCH(DATEVALUE(DateVal)&กำหนดการรายวัน[[#This Row],[เวลา]],LookUpDateAndTime,0),3),\"\")","v":""}]
[{"$nulls":4},{"$f":"ระยะเวลา!E69","v":""},{"$f":"IFERROR(INDEX(ตัวจัดกำหนดการเหตุการณ์[],MATCH(DATEVALUE(DateVal)&กำหนดการรายวัน[[#This Row],[เวลา]],LookUpDateAndTime,0),3),\"\")","v":""}]
[{"$nulls":4},{"$f":"ระยะเวลา!E70","v":""},{"$f":"IFERROR(INDEX(ตัวจัดกำหนดการเหตุการณ์[],MATCH(DATEVALUE(DateVal)&กำหนดการรายวัน[[#This Row],[เวลา]],LookUpDateAndTime,0),3),\"\")","v":""}]
[{"$nulls":4},{"$f":"ระยะเวลา!E71","v":""},{"$f":"IFERROR(INDEX(ตัวจัดกำหนดการเหตุการณ์[],MATCH(DATEVALUE(DateVal)&กำหนดการรายวัน[[#This Row],[เวลา]],LookUpDateAndTime,0),3),\"\")","v":""}]
[{"$nulls":4},{"$f":"ระยะเวลา!E72","v":""},{"$f":"IFERROR(INDEX(ตัวจัดกำหนดการเหตุการณ์[],MATCH(DATEVALUE(DateVal)&กำหนดการรายวัน[[#This Row],[เวลา]],LookUpDateAndTime,0),3),\"\")","v":""}]
[{"$nulls":4},{"$f":"ระยะเวลา!E73","v":""},{"$f":"IFERROR(INDEX(ตัวจัดกำหนดการเหตุการณ์[],MATCH(DATEVALUE(DateVal)&กำหนดการรายวัน[[#This Row],[เวลา]],LookUpDateAndTime,0),3),\"\")","v":""}]
[{"$nulls":4},{"$f":"ระยะเวลา!E74","v":""},{"$f":"IFERROR(INDEX(ตัวจัดกำหนดการเหตุการณ์[],MATCH(DATEVALUE(DateVal)&กำหนดการรายวัน[[#This Row],[เวลา]],LookUpDateAndTime,0),3),\"\")","v":""}]
[{"$nulls":4},{"$f":"ระยะเวลา!E75","v":""},{"$f":"IFERROR(INDEX(ตัวจัดกำหนดการเหตุการณ์[],MATCH(DATEVALUE(DateVal)&กำหนดการรายวัน[[#This Row],[เวลา]],LookUpDateAndTime,0),3),\"\")","v":""}]

{"sheet":"ตัวจัดกำหนดการเหตุการณ์","index":1,"n_rows":15,"n_cols":8,"rows_kept":15,"merged":[[0,1,0,2],[1,1,4,2],[5,1,6,2],[7,1,7,2]]}
[null,"ตัวจัดกำหนดการเหตุการณ์"]
[null,{"$f":"DAY(DateVal)","v":23},null,null,"วันที่","เวลา","คำอธิบาย","ค่าที่ไม่ซ้ำกัน (คำนวณแล้ว)"]
[{"$nulls":4},{"$f":"TODAY()","v":"2022-06-23"},"06:00:00","ตื่นได้แล้ว",{"$f":"ตัวจัดกำหนดการเหตุการณ์[[#This Row],[วันที่]]&\"|\"&COUNTIF($E$3:E3,E3)","v":"44735|1"}]
[{"$nulls":4},{"$f":"TODAY()","v":"2022-06-23"},"06:30:00","อาบน้ำ",{"$f":"ตัวจัดกำหนดการเหตุการณ์[[#This Row],[วันที่]]&\"|\"&COUNTIF($E$3:E4,E4)","v":"44735|2"}]
[{"$nulls":4},"2022-06-23","07:30:00","ออกไปทำงาน",{"$f":"ตัวจัดกำหนดการเหตุการณ์[[#This Row],[วันที่]]&\"|\"&COUNTIF($E$3:E5,E5)","v":"44735|3"}]
[null,{"$f":"TEXT(DateVal,\"dddd\")","v":"พฤหัสบดี"},null,null,"2022-06-23","08:00:00","เริ่มกะ",{"$f":"ตัวจัดกำหนดการเหตุการณ์[[#This Row],[วันที่]]&\"|\"&COUNTIF($E$3:E6,E6)","v":"44735|4"}]
[{"$nulls":4},"2022-06-23","10:00:00","พัก",{"$f":"ตัวจัดกำหนดการเหตุการณ์[[#This Row],[วันที่]]&\"|\"&COUNTIF($E$3:E7,E7)","v":"44735|5"}]
[null,{"$f":"DateVal","v":"23 มิถุนายน 2022"},null,null,"2022-06-23","12:00:00","อาหารกลางวัน",{"$f":"ตัวจัดกำหนดการเหตุการณ์[[#This Row],[วันที่]]&\"|\"&COUNTIF($E$3:E8,E8)","v":"44735|6"}]
[{"$nulls":4},"2022-06-23","13:00:00","กลับจากงาน",{"$f":"ตัวจัดกำหนดการเหตุการณ์[[#This Row],[วันที่]]&\"|\"&COUNTIF($E$3:E9,E9)","v":"44735|7"}]
[null,"เลือกแก้ไขระยะเวลา",null,null,"2022-06-23","13:30:00","โทรหาองค์กร",{"$f":"ตัวจัดกำหนดการเหตุการณ์[[#This Row],[วันที่]]&\"|\"&COUNTIF($E$3:E10,E10)","v":"44735|8"}]
[{"$nulls":4},"2022-06-23","15:00:00","พัก",{"$f":"ตัวจัดกำหนดการเหตุการณ์[[#This Row],[วันที่]]&\"|\"&COUNTIF($E$3:E11,E11)","v":"44735|9"}]
[null,"เลือกเพื่อดู กำหนดการประจำวัน",null,null,"2022-06-23","17:00:00","หน้าแรก",{"$f":"ตัวจัดกำหนดการเหตุการณ์[[#This Row],[วันที่]]&\"|\"&COUNTIF($E$3:E12,E12)","v":"44735|10"}]
[{"$nulls":4},"2022-06-23","18:00:00","ฝึกฟุตบอล",{"$f":"ตัวจัดกำหนดการเหตุการณ์[[#This Row],[วันที่]]&\"|\"&COUNTIF($E$3:E13,E13)","v":"44735|11"}]
[{"$nulls":4},{"$f":"TODAY()+1","v":"2022-06-24"},"06:30:00","อาหารเช้า",{"$f":"ตัวจัดกำหนดการเหตุการณ์[[#This Row],[วันที่]]&\"|\"&COUNTIF($E$3:E15,E14)","v":"44736|2"}]
[{"$nulls":4},{"$f":"TODAY()+1","v":"2022-06-24"},"07:30:00","ออกไปทำงาน",{"$f":"ตัวจัดกำหนดการเหตุการณ์[[#This Row],[วันที่]]&\"|\"&COUNTIF($E$3:E15,E15)","v":"44736|2"}]

{"sheet":"ระยะเวลา","index":2,"n_rows":75,"n_cols":5,"rows_kept":75,"merged":[[0,1,0,2],[1,1,1,2],[9,1,9,2]]}
[null,"ระยะเวลา"]
[null,"แก้ไขตารางเวลา",null,null,"เวลา"]
[{"$nulls":4},{"$f":"เวลาเริ่มต้น","v":"06:00:00"}]
[null,"เวลาเริ่มต้น","06:00:00",null,{"$f":"IFERROR(IF($E3+เพิ่มทีละ>เวลาสิ้นสุด,\"\",$E3+เพิ่มทีละ),\"\")","v":"06:15:00"}]
[{"$nulls":4},"06:30:00"]
[null,"ระยะเวลา","15 นาที",null,"06:45:00"]
[{"$nulls":4},"07:00:00"]
[null,"เวลาสิ้นสุด","21:00:00",null,"07:15:00"]
[{"$nulls":4},"07:30:00"]
[null,"ดูกำหนดการ",null,null,"07:45:00"]
[{"$nulls":4},"08:00:00"]
[null,"เลือกเพื่อ ดูกำหนดการประจำวัน",null,null,"08:15:00"]
[{"$nulls":4},"08:30:00"]
[null,"เลือกเพื่อเพิ่มเหตุการณ์ใหม่",null,null,"08:45:00"]
[{"$nulls":4},"09:00:00"]
[{"$nulls":4},"09:15:00"]
[{"$nulls":4},"09:30:00"]
[{"$nulls":4},"09:45:00"]
[{"$nulls":4},"10:00:00"]
[{"$nulls":4},"10:15:00"]
[{"$nulls":4},"10:30:00"]
[{"$nulls":4},"10:45:00"]
[{"$nulls":4},"11:00:00"]
[{"$nulls":4},"11:15:00"]
[{"$nulls":4},"11:30:00"]
[{"$nulls":4},"11:45:00"]
[{"$nulls":4},"12:00:00"]
[{"$nulls":4},"12:15:00"]
[{"$nulls":4},"12:30:00"]
[{"$nulls":4},"12:45:00"]
[{"$nulls":4},"13:00:00"]
[{"$nulls":4},"13:15:00"]
[{"$nulls":4},"13:30:00"]
[{"$nulls":4},"13:45:00"]
[{"$nulls":4},"14:00:00"]
[{"$nulls":4},{"$f":"IFERROR(IF($E35+เพิ่มทีละ>เวลาสิ้นสุด,\"\",$E35+เพิ่มทีละ),\"\")","v":"14:15:00"}]
[{"$nulls":4},"14:30:00"]
[{"$nulls":4},"14:45:00"]
[{"$nulls":4},"15:00:00"]
[{"$nulls":4},"15:15:00"]
[{"$nulls":4},"15:30:00"]
[{"$nulls":4},"15:45:00"]
[{"$nulls":4},"16:00:00"]
[{"$nulls":4},"16:15:00"]
[{"$nulls":4},"16:30:00"]
[{"$nulls":4},"16:45:00"]
[{"$nulls":4},"17:00:00"]
[{"$nulls":4},"17:15:00"]
[{"$nulls":4},"17:30:00"]
[{"$nulls":4},"17:45:00"]
[{"$nulls":4},"18:00:00"]
[{"$nulls":4},"18:15:00"]
[{"$nulls":4},"18:30:00"]
[{"$nulls":4},"18:45:00"]
[{"$nulls":4},"19:00:00"]
[{"$nulls":4},"19:15:00"]
[{"$nulls":4},"19:30:00"]
[{"$nulls":4},"19:45:00"]
[{"$nulls":4},"20:00:00"]
[{"$nulls":4},"20:15:00"]
[{"$nulls":4},"20:30:00"]
[{"$nulls":4},"20:45:00"]
[{"$nulls":4},"21:00:00"]
[{"$nulls":4},""]
[{"$nulls":4},""]
[{"$nulls":4},""]
[{"$nulls":4},""]
[{"$nulls":4},{"$f":"IFERROR(IF($E67+เพิ่มทีละ>เวลาสิ้นสุด,\"\",$E67+เพิ่มทีละ),\"\")","v":""}]
[{"$nulls":4},""]
[{"$nulls":4},""]
[{"$nulls":4},""]
[{"$nulls":4},""]
[{"$nulls":4},""]
[{"$nulls":4},""]
[{"$nulls":4},""]